Cogmind - Beta 10.2 @@@ ROGUE MODE // 2021.10.29 @ 12:51:34 Player: Kom Result: Destroyed by S-27 Virus with Autogun Performance ------------- Evolutions (3) 1500 Regions Visited (6) 1200 Robots Destroyed (45) 225 Value Destroyed (1326) 1326 Prototype IDs (2) 40 Alien Tech Used (0) 0 Bonus (238) 238 TOTAL SCORE: 4529 Bonus ------- High Alert Combat Kills 37 Follower Combat Kills 201 Cogmind --------- Core Integrity 0/700 Matter 85/300 Energy 100/100 System Corruption 0% Temperature Cool (0) Movement Core (300) Ox5 Location -7/Factory Parts ------- > --- POWER (1) -------- (None) > --- PROPULSION (5) --- (None) > --- UTILITY (4) ------ Large Storage Unit > --- WEAPON (3) ------- (None) > --- INVENTORY (10) --- Advanced Treads Advanced Treads Large Storage Unit Large Storage Unit Hardened Light Armor Plating Improved Light Armor Plating Scatter Rocket Array Scatter Rocket Array Peak State ------------ > --- POWER ------------ Heavy Ion Engine > --- PROPULSION ------- Light Treads Light Treads Light Treads Improved Treads > --- UTILITY ---------- Large Storage Unit Terrain Scanner Improved Terrain Scanner > --- WEAPON ----------- Rocket Launcher Scatter Rocket Array Scatter Rocket Array > --- INVENTORY -------- Large Storage Unit Large Storage Unit Hardened Light Armor Plating Flak Cannon Flak Cannon Flak Cannon Scatter Rocket Array Scatter Rocket Array [Rating: 28] Favorites ----------- Power Heavy Ion Engine Engine Heavy Ion Engine Power Core Light Nuclear Core Propulsion Light Treads Treads Light Treads Utility Large Storage Unit Device Terrain Scanner Storage Large Storage Unit Protection Hardened Light Armor Plating Weapon Rocket Launcher Energy Gun Medium Laser Ballistic Gun Light Assault Rifle Ballistic Cannon Flak Cannon Launcher Rocket Launcher Build | -11 -10 -10 -9 -9 -8 -7 ------- Run | Scr Mat Min Mat Sto Mat Fac Slots Evolved 6 | . . . 2 . 2 2 Power . | . . . . . . . Propulsion 3 | . . . 1 . 1 1 Utility 2 | . . . 1 . . 1 Weapon 1 | . . . . . 1 . Parts Attached 34 | 6 10 2 5 9 2 . Power 3 | 1 . . 1 1 . . Engine 2 | 1 . . . 1 . . Core 1 | . . . 1 . . . Reactor . | . . . . . . . Propulsion 11 | 2 2 . 2 4 1 . Treads 11 | 2 2 . 2 4 1 . Leg . | . . . . . . . Wheel . | . . . . . . . Hover . | . . . . . . . Flight . | . . . . . . . Utility 7 | 1 4 . 1 1 . . Device 2 | . . . 1 1 . . Storage 2 | 1 1 . . . . . Processor . | . . . . . . . Hackware . | . . . . . . . Protection 3 | . 3 . . . . . Artifact . | . . . . . . . Weapon 13 | 2 4 2 1 3 1 . Energy Gun 4 | 1 2 1 . . . . Energy Cannon . | . . . . . . . Ballistic Gun 3 | 1 2 . . . . . Ballistic Cannon 1 | . . . 1 . . . Launcher 5 | . . 1 . 3 1 . Special Weapon . | . . . . . . . Impact Weapon . | . . . . . . . Slashing Weapon . | . . . . . . . Piercing Weapon . | . . . . . . . Special Melee Weapon . | . . . . . . . Unidentified Prototypes 2 | . . . . 2 . . Parts Lost 15 | . . 2 . 4 4 5 Power 2 | . . . . 1 . 1 Propulsion 5 | . . . . 1 1 3 Utility 2 | . . . . 1 1 . Weapon 6 | . . 2 . 1 2 1 Highest Loss Streak 5 | . . 2 . 2 4 5 Average Slot Usage (%) 83 | . 89 81 89 87 98 40 Engine 6 | . 10 . . 7 9 5 Core 1 | . . . 7 1 . . Treads 27 | . 27 28 30 26 35 15 Device 7 | . . . 6 18 17 5 Storage 11 | . 14 14 11 11 9 7 Protection 5 | . 8 14 11 1 . . Energy Gun 5 | . 13 14 3 . . . Ballistic Gun 3 | . 13 . . . . . Ballistic Cannon 1 | . . . 7 . . . Launcher 11 | . . 10 11 21 26 4 Naked Turns . | . . . . . . . Heaviest Build 46 | 10 27 27 37 38 46 33 Greatest Support 83 | 40 40 40 60 60 83 63 Greatest Overweight (x) 5 | 2 1 . . 1 . 5 Average Overweight (x) . | . . . . . . . Largest Inventory Capacity 10 | 6 10 10 10 10 10 10 Average Capacity 9 | 5 7 10 10 10 10 10 Most Carried 10 | 5 10 10 10 10 9 8 Average Carried 8 | 2 5 8 9 9 8 8 Final Capacity 10 | 6 10 10 10 10 10 10 Final Carried 10 | 3 9 10 10 10 8 8 Class Distribution -------------------- 100% | Mutant Dominant Class ---------------- Mutant | -10/Materials Mutant | -10/Mines Mutant | -9/Materials Mutant | -9/Storage Mutant | -8/Materials Mutant | -7/Factory Resources | -11 -10 -10 -9 -9 -8 -7 ----------- Run | Scr Mat Min Mat Sto Mat Fac Matter Collected 992 | 247 89 130 84 331 111 . Remotely . | . . . . . . . Salvage Created 1065 | . 342 170 111 327 115 . Parts 75 | . 22 15 6 18 14 . Haulers Intercepted 1 | . . . 1 . . . Recyclers Shooed 1 | . . . . 1 . . Parts Field Recycled . | . . . . . . . Retrieved Matter . | . . . . . . . Parts Self-Destructed . | . . . . . . . Prevented . | . . . . . . . Kills | -11 -10 -10 -9 -9 -8 -7 ------- Run | Scr Mat Min Mat Sto Mat Fac Combat Hostiles Destroyed 38 | . 8 7 2 10 11 . Guns 10 | . 8 2 . . . . AOE 28 | . . 5 2 10 11 . Classes Destroyed 9 | . 4 1 2 1 1 . Tunneler 2 | . . 1 . . 1 . Hauler 1 | . . . 1 . . . Recycler 2 | . 1 . . 1 . . Mechanic 1 | . . . . 1 . . Watcher 1 | . 1 . . . . . Swarmer 13 | . 3 3 . . 7 . Grunt 20 | . 5 4 1 7 3 . Sentry 4 | . . . 1 3 . . Hunter 1 | . . . . . 1 . Best Kill Streak 8 | . 3 6 2 8 7 . Combat Bots Only 7 | . 3 5 1 6 7 . Max Kills in Single Turn 4 | . 1 2 1 4 3 . Gunslinging . | . . . . . . . Exploded 3 | . . 2 1 3 3 . Melee . | . . . . . . . Uniques/NPCs Destroyed . | . . . . . . . Combat | -11 -10 -10 -9 -9 -8 -7 -------- Run | Scr Mat Min Mat Sto Mat Fac Damage Taken 3127 | . 371 280 67 582 752 1075 Core 1022 | . 107 55 . 100 60 700 Absorbed by Shields . | . . . . . . . Core Remaining (%) 74 | 100 . 35 . 75 89 . Volleys Fired 70 | . 27 14 4 14 11 . Largest 2 | . 2 2 1 2 2 . Hottest 100 | . 70 70 33 83 100 . Shots Fired 109 | . 54 17 4 20 14 . Gun 65 | . 54 11 . . . . Cannon . | . . . . . . . Launcher 44 | . . 6 4 20 14 . Special . | . . . . . . . Kinetic 30 | . 27 3 . . . . Thermal 32 | . 27 5 . . . . Explosive 44 | . . 6 4 20 14 . Electromagnetic 3 | . . 3 . . . . Robot Hit Streak 15 | . 15 10 6 8 3 . Robot Miss Streak 5 | . 2 2 . 4 5 . Penetration Max . | . . . . . . . Secondary Targets 1 | . 1 . . . . . Max Gunslinging Chain 1 | . 1 . . . . . Shots Hit Robots 77 | . 41 12 4 11 9 . Core Hits 95 | . 20 14 4 27 29 1 Critical Hits . | . . . . . . . Critical Kills . | . . . . . . . Critical Parts Destroyed . | . . . . . . . Melee Attacks . | . . . . . . . Impact . | . . . . . . . Slashing . | . . . . . . . Piercing . | . . . . . . . Sneak Attacks . | . . . . . . . Combat Hostiles . | . . . . . . . Follow-up Attacks . | . . . . . . . Damage Inflicted 3132 | . 373 446 195 1090 1016 12 Guns 498 | . 373 125 . . . . Cannons . | . . . . . . . Explosions 2622 | . . 321 195 1090 1016 . Melee . | . . . . . . . Ramming 12 | . . . . . . 12 Kinetic 194 | . 172 22 . . . . Thermal 264 | . 201 63 . . . . Explosive 2622 | . . 321 195 1090 1016 . Electromagnetic 40 | . . 40 . . . . Impact . | . . . . . . . Slashing . | . . . . . . . Piercing . | . . . . . . . Highest Corruption 1 | . . . 1 1 . . Average Corruption 1 | . . . 1 1 . . Corruption Purged . | . . . . . . . Effects 2 | . . . . 2 . . Message Errors 1 | . . . . 1 . . Targeting Errors 1 | . . . . 1 . . Overload Shots . | . . . . . . . Overflow Damage 52 | . . . . 52 . . Projectiles . | . . . . . . . Explosions 52 | . . . . 52 . . Melee . | . . . . . . . Knockbacks . | . . . . . . . Impact . | . . . . . . . Kinetic . | . . . . . . . Secondary . | . . . . . . . Self-Inflicted Damage 185 | . . 21 . 59 105 . Shots 6 | . . 1 . 2 3 . Rammed 12 | . . . . . . 12 Targets Rammed 12 | . . . . . . 12 Kicked . | . . . . . . . Crushed . | . . . . . . . Highest Temperature 222 | . 222 137 . 7 9 . Average Temperature 71 | . 74 74 . 3 9 . Received Heat Transfer 570 | . 132 132 24 138 144 . Siege Activations . | . . . . . . . Robots Corrupted . | . . . . . . . Combat Hostiles . | . . . . . . . Parts Fried . | . . . . . . . Impact Corruptions . | . . . . . . . Robots Melted . | . . . . . . . Combat Hostiles . | . . . . . . . Parts Melted . | . . . . . . . Heat Transferred 777 | . 592 185 . . . . Parts Sabotaged . | . . . . . . . Parts Stolen . | . . . . . . . Parts Stripped . | . . . . . . . Power Chain Reactions . | . . . . . . . Missiles Intercepted . | . . . . . . . Alert | -11 -10 -10 -9 -9 -8 -7 ------- Run | Scr Mat Min Mat Sto Mat Fac Peak Influence 745 | . 155 198 197 450 745 324 Initial 324 | . . 1 76 . 189 324 Average 198 | . 67 135 139 249 446 318 Maximum Alert Level 3 | . . . . 2 3 1 Low Security (%) 65 | 100 100 100 100 42 22 . Level 1 24 | . . . . 45 21 100 Level 2 6 | . . . . 11 35 . Level 3 2 | . . . . . 21 . Level 4 . | . . . . . . . Level 5 . | . . . . . . . High Security . | . . . . . . . Max Security . | . . . . . . . Squads Dispatched 4 | . 1 . 1 2 . . Investigation 2 | . 1 . 1 . . . Extermination . | . . . . . . . Reinforcement 1 | . . . . 1 . . Assault . | . . . . . . . Garrison 1 | . . . . 1 . . Intercept . | . . . . . . . Construction Impeded 1 | . . . . 1 . . Haulers Reinforced . | . . . . . . . Stealth | -11 -10 -10 -9 -9 -8 -7 --------- Run | Scr Mat Min Mat Sto Mat Fac Distress Signals 1 | . . . . 1 . . Communications Jammed . | . . . . . . . Distress Signals . | . . . . . . . Times Spotted 66 | . 17 8 2 20 14 5 Peak Tracking Total 5 | . 4 3 1 5 4 4 Tactical Retreats 3 | . . . . 2 . 1 Traps | -11 -10 -10 -9 -9 -8 -7 ------- Run | Scr Mat Min Mat Sto Mat Fac Traps Triggered 9 | . 5 . . 3 1 . Indirectly . | . . . . . . . Trap Hack Attempts . | . . . . . . . Triggered . | . . . . . . . Disarmed . | . . . . . . . Reprogrammed . | . . . . . . . Reused . | . . . . . . . Traps Extracted . | . . . . . . . Installed . | . . . . . . . Triggered . | . . . . . . . Machines | -11 -10 -10 -9 -9 -8 -7 ---------- Run | Scr Mat Min Mat Sto Mat Fac Machines Disabled 13 | . . . 1 8 4 . Max in Single Turn 2 | . . . 1 2 1 . Garrison Access 1 | . . . . 1 . . Machines Sabotaged . | . . . . . . . Garrisons Compromised . | . . . . . . . Overloaded Fab Kills . | . . . . . . . Fab Network Shutdowns . | . . . . . . . Hacking | -11 -10 -10 -9 -9 -8 -7 --------- Run | Scr Mat Min Mat Sto Mat Fac Machines Accessed 15 | . 6 2 3 3 1 . Terminals 11 | . 4 1 3 2 1 . Fabricators . | . . . . . . . Repair Stations . | . . . . . . . Recycling Units 2 | . 2 . . . . . Scanalyzers . | . . . . . . . Garrison Access 1 | . . . . 1 . . Total Hacks 45 | . 17 4 10 7 7 . Successful 25 | . 8 3 6 4 4 . Failed 20 | . 9 1 4 3 3 . Catastrophic 5 | . 2 1 . 1 1 . Database Lockouts . | . . . . . . . Manual 22 | . 10 2 4 3 3 . Terminals 39 | . 13 3 10 6 7 . Fabricators . | . . . . . . . Repair Stations . | . . . . . . . Recycling Units 4 | . 4 . . . . . Scanalyzers . | . . . . . . . Garrison Access 1 | . . . . 1 . . Terminal Hacks 21 | . 5 3 6 3 4 . Record 7 | . . . 2 2 3 . Open Door 1 | . . 1 . . . . Branch Access Points 3 | . 1 1 1 . . . Emergency Access Points 1 | . 1 . . . . . Terminal Index 2 | . 1 . 1 . . . Alert Level 2 | . . . 1 . 1 . Locate Traps 2 | . 1 . 1 . . . Dispatch Records 2 | . 1 1 . . . . Maintenance Status 1 | . . . . 1 . . Fabricator Hacks . | . . . . . . . Repair Station Hacks . | . . . . . . . Recycling Unit Hacks 3 | . 3 . . . . . Retrieve Matter 2 | . 2 . . . . . Retrieve Components 1 | . 1 . . . . . Scanalyzer . | . . . . . . . Garrison Access Hacks 1 | . . . . 1 . . Seal Access 1 | . . . . 1 . . Unauthorized Hacks . | . . . . . . . Terminals . | . . . . . . . Fabricators . | . . . . . . . Repair Stations . | . . . . . . . Recycling Units . | . . . . . . . Scanalyzers . | . . . . . . . Garrison Access . | . . . . . . . Data Cores Recovered . | . . . . . . . Used . | . . . . . . . Hacking Detections 8 | . 3 1 2 1 1 . Full Trace Events 5 | . 2 1 1 1 . . Feedback Events 1 | . . . 1 . . . Corruption 1 | . . . 1 . . . Feedback Blocked . | . . . . . . . Robot Schematics Acquired . | . . . . . . . Robots Built . | . . . . . . . Matter . | . . . . . . . Time . | . . . . . . . Total Robot Build Rating . | . . . . . . . Part Schematics Acquired . | . . . . . . . Parts Built . | . . . . . . . Matter . | . . . . . . . Time . | . . . . . . . Total Part Build Rating . | . . . . . . . Parts Repaired . | . . . . . . . Time . | . . . . . . . Parts Recycled . | . . . . . . . Recycled Matter . | . . . . . . . Retrieved Matter . | . . . . . . . Retrieved Components 1 | . 1 . . . . . Parts Scanalyzed . | . . . . . . . Part Schematics Acquired . | . . . . . . . Parts Damaged . | . . . . . . . Bothacking | -11 -10 -10 -9 -9 -8 -7 ------------ Run | Scr Mat Min Mat Sto Mat Fac Used RIF Installer . | . . . . . . . Robots Hacked . | . . . . . . . Non-combat . | . . . . . . . Combat . | . . . . . . . Robot Hacks Applied . | . . . . . . . Relay Couplers Released . | . . . . . . . Robots Rewired . | . . . . . . . Allies Hacked . | . . . . . . . Hacks Repelled . | . . . . . . . Allies | -11 -10 -10 -9 -9 -8 -7 -------- Run | Scr Mat Min Mat Sto Mat Fac Total Allies 1 | . . . . 1 . . Largest Group 1 | . . . . 1 1 . Highest-Rated Group 99 | . . . . 99 99 . Highest-Rated Ally 99 | . . . . 99 99 . Total Orders . | . . . . . . . Ally Attacks 13 | . . . . 13 . . Total Damage 375 | . . . . 375 . . Kills 8 | . . . . 8 . . Allies Corrupted . | . . . . . . . Allies Melted . | . . . . . . . Intel | -11 -10 -10 -9 -9 -8 -7 ------- Run | Scr Mat Min Mat Sto Mat Fac Robot Analysis Total . | . . . . . . . Derelict Logs Recovered . | . . . . . . . Drone Launches . | . . . . . . . Drone Recoveries . | . . . . . . . Exploration | -11 -10 -10 -9 -9 -8 -7 ------------- Run | Scr Mat Min Mat Sto Mat Fac Turns Passed 3184 | 95 876 308 425 721 393 366 Spaces Moved 1698 | 54 459 169 246 367 221 182 Core 53 | 26 . . . . . 27 Treads 1645 | 28 459 169 246 367 221 155 Legs . | . . . . . . . Wheels . | . . . . . . . Hover . | . . . . . . . Flight . | . . . . . . . Fastest Speed 50 | 50 160 160 160 160 160 160 Average Speed 161 | 145 160 160 160 160 160 180 Slowest Speed 300 | 160 180 160 160 180 160 300 Overloaded Moves . | . . . . . . . Propulsion Burnouts . | . . . . . . . Robots Hopped . | . . . . . . . Cave-ins Triggered . | . . . . . . . Exploration Rate (%) 30 | 3 73 32 21 53 27 5 Regions Visited 6 Branch Regions 2 Pre-discovered Areas 1 | . . . . 1 . . Known Exits Taken 2 | . 1 . 1 . . . Unknown Exits Taken 4 | 1 . 1 . 1 1 . Scrap Searched 1 | . . 1 . . . . Spaces Dug 58 | . . . . . 58 . Terrain Destroyed 462 | . . 61 28 157 216 . Melee . | . . . . . . . Projectile . | . . . . . . . AOE 462 | . . 61 28 157 216 . Terrain Rammed . | . . . . . . . Walls Destroyed . | . . . . . . . Machines Disabled . | . . . . . . . Actions | -11 -10 -10 -9 -9 -8 -7 --------- Run | Scr Mat Min Mat Sto Mat Fac Total 2005 | 70 552 190 279 480 239 195 Wait 133 | 2 40 3 8 80 . . Move 1692 | 53 458 168 245 366 220 182 Hop . | . . . . . . . Pick Up 45 | 9 15 3 10 5 3 . Fast Attach 2 | . . . . 2 . . Attach 25 | 6 8 2 4 3 2 . Detach . | . . . . . . . Swap 7 | . 2 . 1 4 . . Drop 19 | . 2 . 7 6 3 1 Fire 70 | . 27 14 4 14 11 . Melee . | . . . . . . . Ram 8 | . . . . . . 8 Kick . | . . . . . . . Crush 4 | . . . . . . 4 Escape Stasis . | . . . . . . . Rewire . | . . . . . . . Trap . | . . . . . . . Miscellaneous . | . . . . . . . Route ------- -11/Scrapyard -10/Materials (discovered 4 exits: *Mat x2 / *Min x2) -10/Mines -9/Materials (discovered 3 exits: Min x2 / *Sto) -9/Storage (discovered 2 exits: *Mat / [Rec]) -8/Materials -7/Factory History --------- Turn | Location | Event 18 | -11/Scrapyard | Discovered new exit (range 16) 96 | -11/Scrapyard | Entered Materials 306 | -10/Materials | Build established: Mutant 409 | -10/Materials | Discovered new exit (range 16) 461 | -10/Materials | Discovered new exit (range 13) 743 | -10/Materials | Identified exit to Mines 772 | -10/Materials | Discovered new exit (range 5) 972 | -10/Materials | Entered Mines 981 | -10/Mines | Core integrity fell below 50% 1034 | -10/Mines | Received a Rocket Launcher from a helpful Derelict 1163 | -10/Mines | Found the Drone Emporium 1178 | -10/Mines | Found Prototype Device 1273 | -10/Mines | Discovered new exit (range 5) 1280 | -10/Mines | Entered Materials 1280 | -9/Materials | Evolved 2 slots: Propulsion x1, Utility x1 1292 | -9/Materials | Identified exit to Mines 1292 | -9/Materials | Identified exit to Storage 1705 | -9/Materials | Entered Storage 1796 | -9/Storage | Garrison activated, responded to threat 2026 | -9/Storage | Found Prototype Launcher 2028 | -9/Storage | Found Prototype Launcher 2037 | -9/Storage | Identified Scatter Rocket Array (x2) 2041 | -9/Storage | Found Scatter Rocket Array 2046 | -9/Storage | Found Scatter Rocket Array 2099 | -9/Storage | Met 01-MTF 2199 | -9/Storage | Discovered new exit (range 12) 2327 | -9/Storage | Learned location of Armory (-4) 2415 | -9/Storage | Discovered new exit (range 8) 2426 | -9/Storage | Entered Materials 2426 | -8/Materials | Accompanied by 1 ally (01-MTF) 2426 | -8/Materials | Evolved 2 slots: Propulsion x1, Weapon x1 2431 | -8/Materials | 01-MTF left 2754 | -8/Materials | Destroyed 7 combat bots 2813 | -8/Materials | Discovered new exit (range 5) 2819 | -8/Materials | Entered Factory 2819 | -7/Factory | Evolved 2 slots: Propulsion x1, Utility x1 2841 | -7/Factory | Lost 4 parts (1n1u2w) 3124 | -7/Factory | Lost 5 parts (1p3n1w) 3125 | -7/Factory | Core integrity fell below 50% 3170 | -7/Factory | Core integrity fell below 20% 3185 | -7/Factory | Destroyed by S-27 Virus with Autogun Last Messages --------------- GOAL=ESCAPE 02939_ Connecting with Recycling Unit... 02939_ Current location identified: Factory 03064_ Critical hit. 03064_ Imp. Treads destroyed. 03067_ Slammed into S-27 Virus. 03069_ Lgt. Treads destroyed. 03071_ Slammed into S-27 Virus. 03073_ Lgt. Treads destroyed. 03074_ Slammed into S-27 Virus. 03074_ Scatter Rocket Array permanently disabled. 03074_ Destabilizing: Short circuit. 03078_ Broken Scatter Rocket Array destroyed. 03080_ Slammed into S-27 Virus. 03093_ Hvy. Ion Engine destroyed. 03093_ Slammed into S-27 Virus. 03099_ Imp. Terrain Scanner permanently disabled. 03099_ Destabilizing: Short circuit. 03102_ Slammed into S-27 Virus. 03111_ Dropped Broken Imp. Terrain Scanner. Map ----- +----------------------------------------------------+ | ??????????????????????????????????????? | | ??????????????????????????????????????? | | ??????????????????????????????????????? | | ??????????????????????????????????????? | | ??????????????????????????????????????? | | ??????????????????????????????????????? | | ??????????????????????????????????????? | | ??????????????????????????????????????? | | ??????????????????????????????????????? | | ??????????????????????????????????????? | | ??????????????????????????????????????? | | ??????????????????????????????????????? | | ?????????????????????#########????????? | | ?????????????????????# #????????? | | ?????????????????????# #????????? | | ?????????????????????# #????????? | | ?????????????????????# #????????? | | ?????????????????????# w #????????? | | ?????????????????????# #????????? | | ?????????????????????# #????????? | | ?????????????????????# #????????? | | ???????????????? ?# #????????? | | ????????????????? ?# #????????? | | ????????????????? ?# #????????? | | ?????????????????# # #????????? | | ?????????????????# # @ #????????? | | ?????????????????# # #????????? | | ?????????????????# #k #????????? | | ?????????????????# k #????????? | | ?????????????????# # sss #????????? | | ?????????????????# ###/#####????????? | | ?????????????????# #?????????? | | ?????????????????+ #????"????? | | ?????????????????# !#??"??????? | | ?????????????????## """ #?????????? | | ??????????????????# """ #?????????# | | ??????????????? ??# """ #?????????? | | ???????????????#+## ######+##?? | | ?????????????### #?? | | ????" ?????+ #?? | | ???? ??? ########## #?? | | ????" """ #????????# ##### #?? | | ????" """ #????????# #?### ##? | | ????? """ #????#############??# ! #? | | ???? ####### ??????# #? | | ?? """ # # """" ?????+ #? | | ? """ # # """" ?????# #? | | ? """ /! # # """" #????# #? | | ?? /! # + """" #????### #### | | # """ / # # """" #? ????# #??? | +----------------------------------------------------+ Best States ------------- Heat Dissipation 34 Energy Generation 14 Energy Capacity 280 Matter Stores 300 Matter Capacity 300 Sight Range 16 Terrain Scan Range 16 Terrain Scan Density 10 Armor Coverage 150 Evasion (%) 40 Recoil Reduction 4 Item Schematics ----------------- None Robot Schematics ------------------ None Fabricated ------------ Nothing Alien Tech Used ----------------- None Achievements -------------- Oops Remodeling Troublemaker Challenges ------------ None Game ------ Seed MyomerControlThrower Manual? 0 Play Time 00:40:04 Cumulative 12.3 hours Start 2021.10.29 @ 04:15:28 End 2021.10.29 @ 12:51:34 Sessions 2 Manual Loads 0 Difficulty Rogue Special Mode None Game No. 27 Rogue 27 Adventurer 0 Explorer 0 Win Type - Total 0 Types 0/0/0/0/0/0/0/0/0 Lore% 17 Gallery% 19 Achievement% 12 Wizard Run 0 Options --------- ASCII 0 Keyboard 0 Movement Numpad Keybinds 0 Fullscreen 1 Font 24/Smallcaps Map View 76x50 Tactical HUD 1 Map Filters NONE Filters NONE Steam 1 RUN: a38bdcb4-4700-415f-aa35-8728f547aee1